[Event "Championnat d'Europe Rapide"]
[Date "2024.12.07"]
[White "Uruci, Besim"]
[Black "Laurusas, Tomas"]
[WhiteElo "2095"]
[BlackElo "2578"]
[Round "2.22"]
[Result "0-1"]
[TimeControl "900+10"]

1. Nf3 {[%emt 00:00:01] [%clk 00:15:15]} d5 {[%emt 00:00:03] [%clk 00:15:19]} 2.
d4 {[%emt 00:00:03] [%clk 00:15:22]} Nf6 {[%emt 00:00:03] [%clk 00:15:25]} 3.
Bf4 {[%emt 00:00:04] [%clk 00:15:28]} c5 {[%emt 00:00:53] [%clk 00:14:42]} 4. e3
{[%emt 00:00:09] [%clk 00:15:29]} Nc6 {[%emt 00:00:07] [%clk 00:14:46]} 5. Nbd2
{[%emt 00:00:26] [%clk 00:15:13]} e6 {[%emt 00:00:01] [%clk 00:14:54]} 6. c3
{[%emt 00:00:15] [%clk 00:15:08]} Be7 {[%emt 00:00:04] [%clk 00:15:00]} 7. Bd3
{[%emt 00:00:07] [%clk 00:15:11]} Nh5 {[%emt 00:00:11] [%clk 00:15:00]} 8. Bg3
{[%emt 00:00:02] [%clk 00:15:19]} Nxg3 {[%emt 00:00:09] [%clk 00:15:00]} 9. hxg3
{[%emt 00:00:01] [%clk 00:15:27]} h6 {[%emt 00:00:05] [%clk 00:15:06]} 10. Qe2
{[%emt 00:00:22] [%clk 00:15:15]} Qb6 {[%emt 00:00:04] [%clk 00:15:12]} 11. b3
{[%emt 00:00:35] [%clk 00:14:51]} cxd4 {[%emt 00:00:07] [%clk 00:15:15]} 12.
cxd4 {[%emt 00:00:03] [%clk 00:14:57]} Bd7 {[%emt 00:00:16] [%clk 00:15:09]} 13.
O-O {[%emt 00:00:03] [%clk 00:15:05]} O-O {[%emt 00:00:29] [%clk 00:14:50]} 14.
a3 {[%emt 00:00:02] [%clk 00:15:12]} a5 {[%emt 00:01:15] [%clk 00:13:46]} 15.
Rfc1 {[%emt 00:00:12] [%clk 00:15:10]} Rac8 {[%emt 00:00:09] [%clk 00:13:47]}
16. g4 {[%emt 00:00:49] [%clk 00:14:31]} Rc7 {[%emt 00:00:14] [%clk 00:13:43]}
17. g3 {[%emt 00:00:25] [%clk 00:14:16]} Rfc8 {[%emt 00:01:15] [%clk 00:12:38]}
18. Rc2 {[%emt 00:00:29] [%clk 00:13:56]} Be8 {[%emt 00:00:49] [%clk 00:12:00]}
19. Kg2 {[%emt 00:00:10] [%clk 00:13:55]} Na7 {[%emt 00:00:58] [%clk 00:11:12]}
20. Rxc7 {[%emt 00:00:10] [%clk 00:13:56]} Rxc7 {[%emt 00:00:05] [%clk
00:11:17]} 21. Ne5 {[%emt 00:00:37] [%clk 00:13:28]} Nc6 {[%emt 00:00:11] [%clk
00:11:16]} 22. Nef3 {[%emt 00:01:37] [%clk 00:12:01]} Rc8 {[%emt 00:03:30] [%clk
00:07:57]} 23. Rh1 {[%emt 00:00:13] [%clk 00:11:57]} Qd8 {[%emt 00:00:25] [%clk
00:07:42]} 24. a4 {[%emt 00:00:28] [%clk 00:11:40]} Nb4 {[%emt 00:00:02] [%clk
00:07:49]} 25. Bb1 {[%emt 00:00:18] [%clk 00:11:32]} Rc3 {[%emt 00:00:22] [%clk
00:07:37]} 26. Ne5 {[%emt 00:00:15] [%clk 00:11:27]} b5 {[%emt 00:02:57] [%clk
00:04:51]} 27. axb5 {[%emt 00:00:11] [%clk 00:11:26]} Qb6 {[%emt 00:00:01] [%clk
00:04:58]} 28. f4 {[%emt 00:01:34] [%clk 00:10:03]} Qxb5 {[%emt 00:00:39] [%clk
00:04:29]} 29. Qf3 {[%emt 00:00:17] [%clk 00:09:56]} Nc2 {[%emt 00:00:05] [%clk
00:04:34]} 30. g5 {[%emt 00:01:22] [%clk 00:08:45]} Rxe3 {[%emt 00:00:09] [%clk
00:04:35]} 31. Bxc2 {[%emt 00:00:38] [%clk 00:08:16]} Rxf3 {[%emt 00:00:18]
[%clk 00:04:28]} 32. Kxf3 {[%emt 00:00:06] [%clk 00:08:20]} Qb4 {[%emt 00:00:15]
[%clk 00:04:22]} 33. Nf1 {[%emt 00:02:07] [%clk 00:06:23]} Qc3+ {[%emt 00:00:07]
[%clk 00:04:25]} 34. Ne3 {[%emt 00:00:02] [%clk 00:06:31]} f6 {[%emt 00:00:29]
[%clk 00:04:07]} 35. Rc1 {[%emt 00:02:18] [%clk 00:04:22]} Qb2 {[%emt 00:00:17]
[%clk 00:04:00]} 36. Nd3 {[%emt 00:00:07] [%clk 00:04:25]} Qxd4 {[%emt 00:00:05]
[%clk 00:04:05]} 37. gxh6 {[%emt 00:00:10] [%clk 00:04:25]} gxh6 {[%emt
00:00:26] [%clk 00:03:50]} 38. Bb1 {[%emt 00:00:22] [%clk 00:04:12]} Bb5 {[%emt
00:00:16] [%clk 00:03:43]} 39. Nf2 {[%emt 00:00:15] [%clk 00:04:08]} Bc5 {[%emt
00:00:18] [%clk 00:03:35]} 40. Nfg4 {[%emt 00:00:35] [%clk 00:03:42]} f5 {[%emt
00:00:19] [%clk 00:03:27]} 41. Nxh6+ {[%emt 00:00:15] [%clk 00:03:37]} Kf8
{[%emt 00:00:26] [%clk 00:03:11]} 42. Nhxf5 {[%emt 00:01:02] [%clk 00:02:45]}
exf5 {[%emt 00:00:03] [%clk 00:03:18]} 43. Nxf5 {[%emt 00:00:02] [%clk
00:02:53]} Qf2+ {[%emt 00:00:23] [%clk 00:03:05]} 44. Kg4 {[%emt 00:00:03] [%clk
00:03:00]} Bd7 {[%emt 00:00:17] [%clk 00:02:58]} 45. Rh1 {[%emt 00:00:13] [%clk
00:02:58]} Qe2+ {[%emt 00:00:07] [%clk 00:03:01]} 46. Kg5 {[%emt 00:00:10] [%clk
00:02:58]} Be7+ {[%emt 00:00:17] [%clk 00:02:53]} 47. Nxe7 {[%emt 00:00:46]
[%clk 00:02:22]} Qxe7+ {[%emt 00:00:41] [%clk 00:02:22]} 48. Kh5 {[%emt
00:00:31] [%clk 00:02:02]} Qg7 {[%emt 00:00:39] [%clk 00:01:52]} 49. Rh4 {[%emt
00:00:38] [%clk 00:01:35]} Be8+ {[%emt 00:00:02] [%clk 00:01:59]} 0-1

[Site "Europe Echecs"]

[Event "Championnat d'Europe Rapide"]
[Date "2024.12.07"]
[White "Bernadskiy, Vitaliy"]
[Black "Rodriguez Fontecha, Marcos"]
[WhiteElo "2546"]
[BlackElo "2278"]
[Round "2.23"]
[Result "1-0"]
[TimeControl "900+10"]

1. d4 {[%emt 00:00:01] [%clk 00:15:18]} d5 {[%emt 00:00:06] [%clk 00:15:16]} 2.
Nf3 {[%clk 00:15:26]} Nf6 {[%emt 00:00:06] [%clk 00:15:19]} 3. Bf4 {[%emt
00:00:04] [%clk 00:15:33]} c5 {[%emt 00:01:01] [%clk 00:14:27]} 4. e3 {[%emt
00:00:03] [%clk 00:15:41]} Qb6 {[%emt 00:00:10] [%clk 00:14:28]} 5. Nc3 {[%emt
00:00:23] [%clk 00:15:27]} e6 {[%emt 00:00:44] [%clk 00:13:53]} 6. Nb5 {[%emt
00:00:54] [%clk 00:14:43]} Na6 {[%emt 00:00:14] [%clk 00:13:49]} 7. a4 {[%emt
00:00:10] [%clk 00:14:44]} Ne4 {[%emt 00:02:45] [%clk 00:11:14]} 8. Bd3 {[%emt
00:01:05] [%clk 00:13:49]} Nd6 {[%emt 00:00:22] [%clk 00:11:02]} 9. Nxd6+ {[%emt
00:01:45] [%clk 00:12:14]} Bxd6 {[%emt 00:00:07] [%clk 00:11:04]} 10. Bb5+
{[%emt 00:00:03] [%clk 00:12:22]} Bd7 {[%emt 00:01:14] [%clk 00:10:00]} 11.
Bxd7+ {[%emt 00:00:21] [%clk 00:12:12]} Kxd7 {[%emt 00:00:02] [%clk 00:10:07]}
12. Bxd6 {[%emt 00:00:08] [%clk 00:12:14]} Qxd6 {[%emt 00:00:16] [%clk
00:10:01]} 13. Ne5+ {[%emt 00:00:43] [%clk 00:11:40]} Ke7 {[%emt 00:00:34] [%clk
00:09:37]} 14. Qh5 {[%emt 00:00:29] [%clk 00:11:21]} g6 {[%emt 00:02:09] [%clk
00:07:39]} 15. Qh6 {[%emt 00:00:02] [%clk 00:11:29]} Rag8 {[%emt 00:01:18] [%clk
00:06:31]} 16. O-O {[%emt 00:00:09] [%clk 00:11:30]} f6 {[%emt 00:00:12] [%clk
00:06:29]} 17. Ng4 {[%emt 00:01:05] [%clk 00:10:35]} Nc7 {[%emt 00:00:57] [%clk
00:05:42]} 18. Rfe1 {[%emt 00:00:53] [%clk 00:09:51]} cxd4 {[%emt 00:01:25]
[%clk 00:04:27]} 19. exd4 {[%emt 00:00:06] [%clk 00:09:56]} Ne8 {[%emt 00:00:01]
[%clk 00:04:35]} 20. Ra3 {[%emt 00:01:27] [%clk 00:08:38]} g5 {[%emt 00:00:30]
[%clk 00:04:15]} 21. Rae3 {[%emt 00:02:16] [%clk 00:06:33]} Rg6 {[%emt 00:00:07]
[%clk 00:04:18]} 22. Rxe6+ {[%emt 00:00:17] [%clk 00:06:26]} Qxe6 {[%emt
00:00:01] [%clk 00:04:26]} 23. Rxe6+ {[%emt 00:00:02] [%clk 00:06:35]} Kxe6
{[%emt 00:00:01] [%clk 00:04:35]} 24. Qh3 {[%emt 00:00:02] [%clk 00:06:42]} Kd6
{[%emt 00:03:01] [%clk 00:01:45]} 25. Qg3+ {[%emt 00:00:11] [%clk 00:06:40]} Kc6
{[%emt 00:00:25] [%clk 00:01:30]} 26. Qb8 {[%emt 00:00:03] [%clk 00:06:48]} Rhg8
{[%emt 00:01:11] [%clk 00:00:30]} 27. Qxa7 {[%emt 00:00:09] [%clk 00:06:48]} Nc7
{[%emt 00:00:05] [%clk 00:00:35]} 28. a5 {[%emt 00:00:36] [%clk 00:06:23]} Ra8
{[%emt 00:00:29] [%clk 00:00:16]} 29. Qb6+ {[%emt 00:00:11] [%clk 00:06:21]} Kd7
{[%emt 00:00:01] [%clk 00:00:25]} 30. Nxf6+ {[%emt 00:00:37] [%clk 00:05:54]}
Kc8 {[%emt 00:00:02]} 31. Qd6 {[%clk 00:06:02]} 1-0

[Site "Europe Echecs"]

[Event "Championnat d'Europe Rapide"]
[Date "2024.12.07"]
[White "Tweedie, Steven"]
[Black "Mastrovasilis, Dimitrios"]
[WhiteElo "2172"]
[BlackElo "2537"]
[Round "2.24"]
[Result "1-0"]
[TimeControl "900+10"]

1. e4 {[%emt 00:00:05] [%clk 00:15:13]} c5 {[%emt 00:00:19] [%clk 00:15:01]} 2.
Nc3 {[%emt 00:00:03] [%clk 00:15:20]} a6 {[%emt 00:00:19] [%clk 00:14:53]} 3. g3
{[%emt 00:00:03] [%clk 00:15:26]} b5 {[%emt 00:00:07] [%clk 00:14:56]} 4. Bg2
{[%emt 00:00:02] [%clk 00:15:34]} Bb7 {[%emt 00:00:03] [%clk 00:15:03]} 5. d3
{[%emt 00:00:03] [%clk 00:15:41]} e6 {[%emt 00:00:23] [%clk 00:14:50]} 6. Nf3
{[%emt 00:02:30] [%clk 00:13:21]} d6 {[%emt 00:00:37] [%clk 00:14:22]} 7. O-O
{[%emt 00:00:07] [%clk 00:13:25]} Nf6 {[%emt 00:00:16] [%clk 00:14:15]} 8. a3
{[%emt 00:01:36] [%clk 00:12:01]} Be7 {[%emt 00:02:03] [%clk 00:12:21]} 9. h3
{[%emt 00:00:14] [%clk 00:11:57]} O-O {[%emt 00:01:06] [%clk 00:11:25]} 10. Re1
{[%emt 00:02:18] [%clk 00:09:49]} Nbd7 {[%emt 00:00:40] [%clk 00:10:55]} 11. Nh2
{[%emt 00:00:38] [%clk 00:09:21]} Qc7 {[%emt 00:01:40] [%clk 00:09:24]} 12. f4
{[%emt 00:00:10] [%clk 00:09:22]} Rac8 {[%emt 00:00:55] [%clk 00:08:39]} 13. Nf3
{[%emt 00:00:47] [%clk 00:08:44]} b4 {[%emt 00:00:32] [%clk 00:08:18]} 14. Ne2
{[%emt 00:01:17] [%clk 00:07:38]} bxa3 {[%emt 00:00:31] [%clk 00:07:56]} 15.
bxa3 {[%emt 00:00:13] [%clk 00:07:35]} c4 {[%emt 00:00:06] [%clk 00:08:00]} 16.
Be3 {[%emt 00:01:17] [%clk 00:06:28]} Ba8 {[%emt 00:01:00] [%clk 00:07:10]} 17.
g4 {[%emt 00:01:45] [%clk 00:04:53]} Nc5 {[%emt 00:00:48] [%clk 00:06:32]} 18.
Ng3 {[%emt 00:00:22] [%clk 00:04:40]} Rfe8 {[%emt 00:00:26] [%clk 00:06:16]} 19.
g5 {[%emt 00:00:22] [%clk 00:04:28]} Nfd7 {[%emt 00:00:03] [%clk 00:06:23]} 20.
Nd4 {[%emt 00:00:05] [%clk 00:04:33]} Bf8 {[%emt 00:00:32] [%clk 00:06:02]} 21.
Nde2 {[%emt 00:00:39] [%clk 00:04:04]} e5 {[%emt 00:04:29] [%clk 00:01:43]} 22.
f5 {[%emt 00:01:28] [%clk 00:02:46]} Nb6 {[%emt 00:00:26] [%clk 00:01:27]} 23.
Nc1 {[%emt 00:00:49] [%clk 00:02:07]} d5 {[%emt 00:00:14] [%clk 00:01:23]} 24.
Qg4 {[%emt 00:00:17] [%clk 00:02:00]} g6 {[%emt 00:00:31] [%clk 00:01:02]} 25.
h4 {[%emt 00:00:05] [%clk 00:02:06]} Red8 {[%emt 00:00:20] [%clk 00:00:51]} 26.
h5 {[%emt 00:00:04] [%clk 00:02:12]} Qd7 {[%emt 00:00:07] [%clk 00:00:55]} 27.
hxg6 {[%emt 00:00:13] [%clk 00:02:09]} hxg6 {[%emt 00:00:02] [%clk 00:01:03]}
28. Qh4 {[%emt 00:00:11] [%clk 00:02:07]} cxd3 {[%emt 00:00:30] [%clk 00:00:43]}
29. cxd3 {[%emt 00:00:08] [%clk 00:02:10]} Nca4 {[%emt 00:00:14] [%clk
00:00:39]} 30. Kf2 {[%emt 00:00:13] [%clk 00:02:07]} Rc2+ {[%emt 00:00:01] [%clk
00:00:47]} 31. Nce2 {[%emt 00:00:06] [%clk 00:02:11]} d4 {[%emt 00:00:35] [%clk
00:00:22]} 32. Bc1 {[%emt 00:00:28] [%clk 00:01:53]} Nc5 {[%emt 00:00:03] [%clk
00:00:29]} 33. Rh1 {[%emt 00:00:05] [%clk 00:01:58]} Bg7 {[%emt 00:00:08] [%clk
00:00:31]} 34. f6 {[%emt 00:00:13] [%clk 00:01:55]} Nxd3+ {[%emt 00:00:23] [%clk
00:00:18]} 35. Kf1 {[%emt 00:00:01] [%clk 00:02:03]} 1-0

[Site "Europe Echecs"]

[Event "Championnat d'Europe Rapide"]
[Date "2024.12.07"]
[White "Fridman, Daniel"]
[Black "Wyss, Jonas"]
[WhiteElo "2571"]
[BlackElo "2270"]
[Round "2.25"]
[Result "1-0"]
[TimeControl "900+10"]

1. d4 {[%emt 00:01:29] [%clk 00:15:17]} Nf6 {[%emt 00:00:02] [%clk 00:15:18]} 2.
Nf3 {[%emt 00:00:02] [%clk 00:15:26]} g6 {[%emt 00:00:03] [%clk 00:15:25]} 3. g3
{[%emt 00:00:04] [%clk 00:15:32]} Bg7 {[%emt 00:00:03] [%clk 00:15:32]} 4. Bg2
{[%emt 00:00:02] [%clk 00:15:40]} O-O {[%emt 00:00:04] [%clk 00:15:38]} 5. c4
{[%emt 00:00:03] [%clk 00:15:48]} c6 {[%emt 00:00:02] [%clk 00:15:46]} 6. Nc3
{[%emt 00:00:02] [%clk 00:15:55]} d5 {[%emt 00:00:02] [%clk 00:15:54]} 7. cxd5
{[%emt 00:00:02] [%clk 00:16:03]} cxd5 {[%emt 00:00:03] [%clk 00:16:01]} 8. Ne5
{[%emt 00:00:02] [%clk 00:16:11]} Nfd7 {[%emt 00:01:55] [%clk 00:14:17]} 9. Nxd7
{[%emt 00:02:21] [%clk 00:14:01]} Qxd7 {[%emt 00:00:03] [%clk 00:14:24]} 10.
Nxd5 {[%emt 00:00:47] [%clk 00:13:23]} e6 {[%emt 00:00:12] [%clk 00:14:21]} 11.
Nc3 {[%emt 00:00:04] [%clk 00:13:29]} Qxd4 {[%emt 00:00:46] [%clk 00:13:46]} 12.
Qxd4 {[%emt 00:00:41] [%clk 00:12:58]} Bxd4 {[%emt 00:00:01] [%clk 00:13:55]}
13. Nb5 {[%emt 00:00:02] [%clk 00:13:06]} Be5 {[%emt 00:01:05] [%clk 00:13:00]}
14. Bh6 {[%emt 00:01:59] [%clk 00:11:16]} Rd8 {[%emt 00:00:49] [%clk 00:12:22]}
15. Bg5 {[%emt 00:00:02] [%clk 00:11:23]} Rd7 {[%emt 00:02:24] [%clk 00:10:08]}
16. Bf4 {[%emt 00:01:19] [%clk 00:10:15]} Bxf4 {[%emt 00:00:51] [%clk 00:09:28]}
17. gxf4 {[%emt 00:00:01] [%clk 00:10:23]} Nc6 {[%emt 00:00:02] [%clk 00:09:36]}
18. Rc1 {[%emt 00:01:05] [%clk 00:09:28]} a6 {[%emt 00:02:32] [%clk 00:07:15]}
19. Bxc6 {[%emt 00:00:03] [%clk 00:09:34]} bxc6 {[%emt 00:00:16] [%clk
00:07:09]} 20. Nc3 {[%emt 00:00:02] [%clk 00:09:42]} Rb8 {[%emt 00:01:01] [%clk
00:06:18]} 21. b3 {[%emt 00:00:13] [%clk 00:09:39]} Rb4 {[%emt 00:00:14] [%clk
00:06:14]} 22. e3 {[%emt 00:00:21] [%clk 00:09:28]} c5 {[%emt 00:00:32] [%clk
00:05:52]} 23. O-O {[%emt 00:03:06] [%clk 00:06:31]} c4 {[%emt 00:01:26] [%clk
00:04:37]} 24. Ne4 {[%emt 00:00:03] [%clk 00:06:38]} Kg7 {[%emt 00:00:48] [%clk
00:03:59]} 25. Nc5 {[%emt 00:00:15] [%clk 00:06:33]} Rc7 {[%emt 00:01:19] [%clk
00:02:50]} 26. a3 {[%emt 00:00:03] [%clk 00:06:41]} Rb5 {[%emt 00:00:08] [%clk
00:02:51]} 27. b4 {[%emt 00:00:02] [%clk 00:06:49]} Rbxc5 {[%emt 00:00:15] [%clk
00:02:46]} 28. bxc5 {[%emt 00:00:02] [%clk 00:06:57]} Rxc5 {[%emt 00:00:01]
[%clk 00:02:55]} 29. Rc3 {[%emt 00:00:05] [%clk 00:07:02]} a5 {[%emt 00:01:27]
[%clk 00:01:39]} 30. Rb1 {[%emt 00:00:10] [%clk 00:07:02]} g5 {[%emt 00:00:34]
[%clk 00:01:14]} 31. fxg5 {[%emt 00:00:43] [%clk 00:06:29]} Rxg5+ {[%emt
00:00:01] [%clk 00:01:23]} 32. Kf1 {[%emt 00:00:04] [%clk 00:06:35]} Rc5 {[%emt
00:00:11] [%clk 00:01:21]} 33. e4 {[%emt 00:00:39] [%clk 00:06:06]} e5 {[%emt
00:00:08] [%clk 00:01:24]} 34. Rb6 {[%emt 00:00:11] [%clk 00:06:05]} Be6 {[%emt
00:00:17] [%clk 00:01:17]} 35. Ke2 {[%emt 00:00:08] [%clk 00:06:07]} Kf6 {[%emt
00:00:22] [%clk 00:01:05]} 36. a4 {[%emt 00:00:12] [%clk 00:06:05]} Ke7 {[%emt
00:00:11] [%clk 00:01:04]} 37. Rb5 {[%emt 00:00:48] [%clk 00:05:27]} Kd6 {[%emt
00:00:30] [%clk 00:00:45]} 38. Ra3 {[%emt 00:00:05] [%clk 00:05:31]} Kc6 {[%emt
00:00:17] [%clk 00:00:39]} 39. Rb2 {[%emt 00:00:12] [%clk 00:05:28]} Kc7 {[%emt
00:00:29] [%clk 00:00:21]} 40. Kd2 {[%emt 00:00:01] [%clk 00:05:36]} Bd7 {[%emt
00:00:07] [%clk 00:00:24]} 41. Kc3 {[%emt 00:00:09] [%clk 00:05:37]} Rc6 {[%emt
00:00:10] [%clk 00:00:24]} 42. f3 {[%emt 00:00:27] [%clk 00:05:20]} Be6 {[%emt
00:00:23] [%clk 00:00:11]} 43. Rb5 {[%emt 00:00:19] [%clk 00:05:10]} f6 {[%emt
00:00:10] [%clk 00:00:12]} 44. Rxa5 {[%emt 00:00:10] [%clk 00:05:10]} Rd6 {[%emt
00:00:03] [%clk 00:00:20]} 45. Ra7+ {[%emt 00:01:11] [%clk 00:04:08]} Kb6 {[%emt
00:00:07] [%clk 00:00:23]} 46. Rxh7 {[%emt 00:00:02] [%clk 00:04:15]} Rd3+
{[%emt 00:00:22] [%clk 00:00:12]} 47. Kb4 {[%emt 00:00:03] [%clk 00:04:22]} Rd2
{[%emt 00:00:02] [%clk 00:00:20]} 48. a5+ {[%emt 00:00:14] [%clk 00:04:18]} Kc6
{[%clk 00:00:29]} 49. a6 {[%emt 00:00:06] [%clk 00:04:22]} Rb2+ {[%emt 00:00:23]
[%clk 00:00:16]} 50. Kc3 {[%emt 00:00:03] [%clk 00:04:30]} Rf2 {[%emt 00:00:01]
[%clk 00:00:24]} 51. a7 {[%emt 00:00:03] [%clk 00:04:37]} Kc5 {[%emt 00:00:23]
[%clk 00:00:12]} 52. a8=Q {[%emt 00:00:33] [%clk 00:04:14]} Rxf3+ {[%emt
00:00:04] [%clk 00:00:17]} 53. Kd2 {[%emt 00:00:02] [%clk 00:04:22]} 1-0

[Site "Europe Echecs"]

[Event "Championnat d'Europe Rapide"]
[Date "2024.12.07"]
[White "Zygouris, Hristos"]
[Black "Smeets, Jan"]
[WhiteElo "2163"]
[BlackElo "2552"]
[Round "2.26"]
[Result "0-1"]
[TimeControl "900+10"]

1. Nf3 {[%emt 00:30:02] [%clk 00:15:17]} d5 {[%emt 00:00:02] [%clk 00:15:19]} 2.
g3 {[%emt 00:00:02] [%clk 00:15:25]} Nf6 {[%emt 00:00:03] [%clk 00:15:27]} 3.
Bg2 {[%clk 00:15:34]} b5 {[%emt 00:00:13] [%clk 00:15:25]} 4. a4 {[%emt
00:00:35] [%clk 00:15:08]} b4 {[%emt 00:00:02] [%clk 00:15:33]} 5. O-O {[%emt
00:01:05] [%clk 00:14:13]} e6 {[%emt 00:00:02] [%clk 00:15:41]} 6. d4 {[%emt
00:00:52] [%clk 00:13:31]} Be7 {[%emt 00:01:17] [%clk 00:14:34]} 7. c4 {[%emt
00:00:03] [%clk 00:13:37]} bxc3 {[%emt 00:00:03] [%clk 00:14:42]} 8. Nxc3 {[%emt
00:01:01] [%clk 00:12:45]} a5 {[%emt 00:00:10] [%clk 00:14:43]} 9. Ne5 {[%emt
00:00:25] [%clk 00:12:29]} O-O {[%emt 00:00:03] [%clk 00:14:51]} 10. Bg5 {[%emt
00:00:57] [%clk 00:11:41]} Nfd7 {[%emt 00:00:23] [%clk 00:14:39]} 11. Bxe7
{[%emt 00:00:22] [%clk 00:11:29]} Qxe7 {[%emt 00:00:01] [%clk 00:14:48]} 12. Nf3
{[%emt 00:01:19] [%clk 00:10:21]} Na6 {[%emt 00:00:31] [%clk 00:14:27]} 13. Rc1
{[%emt 00:00:04] [%clk 00:10:26]} Nb4 {[%emt 00:00:28] [%clk 00:14:09]} 14. Qd2
{[%emt 00:00:28] [%clk 00:10:07]} Ba6 {[%emt 00:00:11] [%clk 00:14:09]} 15. Rfd1
{[%emt 00:00:26] [%clk 00:09:51]} Rab8 {[%emt 00:00:06] [%clk 00:14:13]} 16. Bf1
{[%emt 00:00:12] [%clk 00:09:50]} Qf6 {[%emt 00:02:46] [%clk 00:11:37]} 17. Qf4
{[%emt 00:00:39] [%clk 00:09:20]} Rb7 {[%emt 00:00:15] [%clk 00:11:32]} 18. Qxf6
{[%emt 00:00:48] [%clk 00:08:43]} gxf6 {[%emt 00:00:01] [%clk 00:11:40]} 19. Nb5
{[%emt 00:00:37] [%clk 00:08:16]} c6 {[%emt 00:00:11] [%clk 00:11:39]} 20. Nc3
{[%emt 00:00:32] [%clk 00:07:53]} Rfb8 {[%emt 00:00:02] [%clk 00:11:47]} 21. Ne1
{[%emt 00:01:02] [%clk 00:07:02]} Kf8 {[%emt 00:00:57] [%clk 00:11:00]} 22. e3
{[%emt 00:00:08] [%clk 00:07:04]} Ke7 {[%emt 00:00:01] [%clk 00:11:09]} 23. Bxa6
{[%emt 00:00:21] [%clk 00:06:53]} Nxa6 {[%emt 00:00:02] [%clk 00:11:17]} 24. Nd3
{[%emt 00:00:01] [%clk 00:07:02]} Nb4 {[%emt 00:00:43] [%clk 00:10:45]} 25. Ne1
{[%emt 00:00:41] [%clk 00:06:30]} Nb6 {[%emt 00:00:35] [%clk 00:10:20]} 26. Rd2
{[%emt 00:01:01] [%clk 00:05:39]} Nc4 {[%emt 00:01:01] [%clk 00:09:29]} 27. Re2
{[%clk 00:05:48]} Na6 {[%emt 00:00:01] [%clk 00:09:38]} 28. Nd3 {[%emt 00:01:29]
[%clk 00:04:29]} Nxb2 {[%emt 00:00:17] [%clk 00:09:32]} 29. Nxb2 {[%emt
00:00:10] [%clk 00:04:28]} Rxb2 {[%emt 00:00:01] [%clk 00:09:40]} 30. Rcc2
{[%emt 00:01:30] [%clk 00:03:09]} Rxc2 {[%emt 00:00:47] [%clk 00:09:03]} 31.
Rxc2 {[%emt 00:00:01] [%clk 00:03:18]} Kd6 {[%emt 00:00:01] [%clk 00:09:13]} 32.
Kg2 {[%clk 00:03:27]} Rb3 {[%emt 00:00:12] [%clk 00:09:11]} 33. Kf3 {[%emt
00:00:29] [%clk 00:03:08]} Nb4 {[%emt 00:00:01] [%clk 00:09:19]} 0-1

[Site "Europe Echecs"]